bitfinex-derivatives/quotes_BNBF0:USTF0_20260221
["timestamp","ask_amount","ask_price","bid_price","bid_amount"]
[1771640317028,1.19439215,628.42,628.08,0.31858683]
[1771640317229,1.19439215,628.42,628.09,0.31858683]
[1771640317529,1.19439215,628.42,628.1,0.31858683]
[1771640317735,1.19439215,628.42,628.11,0.31858683]
[1771640317934,1.19439215,628.42,628.12,0.31858683]
[1771640318135,1.19439215,628.42,628.13,0.31858683]
[1771640318336,1.19439215,628.42,628.14,0.31858683]
[1771640318538,1.19439215,628.42,628.15,0.31858683]
[1771640318736,1.19439215,628.42,628.16,0.31858683]
[1771640318940,1.19439215,628.42,628.17,0.31858683]
[1771640319237,1.19439215,628.42,628.18,0.31858683]
[1771640319434,1.19439215,628.42,628.19,0.31858683]
[1771640319639,1.19439215,628.42,628.2,0.31858683]
[1771640319834,1.19439215,628.42,628.21,0.31858683]
[1771640320137,1.19439215,628.42,628.22,0.31858683]
[1771640320336,1.19439215,628.42,628.23,0.31858683]
[1771640320539,1.19439215,628.42,628.24,0.31858683]
[1771640320738,1.19439215,628.42,628.25,0.31858683]
[1771640320936,1.19439215,628.42,628.26,0.31858683]
[1771640321136,1.19439215,628.42,628.27,0.31858683]
[1771640321338,1.19439215,628.42,628.28,0.31858683]
[1771640321540,1.19439215,628.42,628.29,0.31858683]
[1771640321848,1.19439215,628.42,628.3,0.31858683]
[1771640322042,1.19439215,628.42,628.31,0.31858683]
[1771640322241,1.19439215,628.42,628.32,0.31858683]
[1771640322445,1.19439215,628.42,628.33,0.31858683]
[1771640322648,1.19439215,628.42,628.34,0.31858683]
[1771640322843,1.19439215,628.42,628.35,0.31858683]
[1771640323042,1.19439215,628.42,628.36,0.31858683]
[1771640323342,1.19439215,628.42,628.37,0.31858683]
[1771640323544,1.19439215,628.42,628.38,0.31858683]
[1771640323845,1.19439215,628.42,628.39,0.31858683]
[1771640324045,1.19439215,628.42,628.4,0.31858683]
[1771640324243,1.19439215,628.42,628.41,0.31858683]
[1771640325049,1.19439215,628.42,628.17,1.735]
[1771640325248,1.19439215,628.4,628.18,0.31857626]
[1771640325545,1.19439215,628.4,628.19,0.31857626]
[1771640325748,1.19439215,628.4,628.2,0.31857626]
[1771640326048,1.19439215,628.4,628.21,0.31857626]
[1771640326248,1.19439215,628.4,628.22,0.31857626]
[1771640326446,1.19439215,628.4,628.23,0.31857626]
[1771640326746,1.19439215,628.4,628.24,0.31857626]
[1771640326949,1.19439215,628.4,628.25,0.31857626]
[1771640327149,1.19439215,628.4,628.26,0.31857626]
[1771640327346,1.19439215,628.4,628.27,0.31857626]
[1771640327645,1.19439215,628.4,628.28,0.31857626]
[1771640327950,1.19439215,628.4,628.29,0.31857626]
[1771640328149,1.19439215,628.4,628.3,0.31857626]
[1771640328343,1.19439215,628.4,628.31,0.31857626]
[1771640328548,1.19439215,628.4,628.32,0.31857626]
[1771640328744,1.19439215,628.4,628.33,0.31857626]
[1771640328950,1.19439215,628.4,628.34,0.31857626]
[1771640329146,1.19439215,628.4,628.35,0.31857626]
[1771640329449,1.19439215,628.4,628.36,0.31857626]
[1771640329645,1.19439215,628.4,628.37,0.31857626]
[1771640329845,1.19439215,628.4,628.38,0.31857626]
[1771640330146,1.19439215,628.4,628.39,0.31857626]
[1771640335153,0.27701272,628.59,628.39,0.31857626]
[1771640335154,1.19439215,628.42,628.39,0.31857626]
[1771640335451,1.19439215,628.42,628.4,0.31857626]
[1771640335649,1.19439215,628.42,628.41,0.31857626]
[1771640339353,1.19439215,628.43,628.41,0.31857626]
[1771640339553,1.19439215,628.43,628.17,1.735]
[1771640339851,1.19439215,628.43,628.18,0.31857629]
[1771640340050,1.19439215,628.43,628.19,0.31857629]
[1771640340250,1.19439215,628.43,628.2,0.31857629]
[1771640340553,1.19439215,628.43,628.21,0.31857629]
[1771640340751,1.19439215,628.43,628.22,0.31857629]
[1771640340952,1.19439215,628.43,628.23,0.31857629]
[1771640341154,1.19439215,628.43,628.24,0.31857629]
[1771640341452,1.19439215,628.43,628.25,0.31857629]
[1771640341649,1.19439215,628.43,628.26,0.31857629]
[1771640341849,1.19439215,628.43,628.27,0.31857629]
[1771640342149,1.19439215,628.43,628.28,0.31857629]
[1771640342453,1.19439215,628.43,628.29,0.31857629]
[1771640342655,1.19439215,628.43,628.3,0.31857629]
[1771640342954,1.19439215,628.43,628.31,0.31857629]
[1771640343152,1.19439215,628.43,628.32,0.31857629]
[1771640343352,1.19439215,628.43,628.33,0.31857629]
[1771640343556,1.19439215,628.43,628.34,0.31857629]
[1771640343752,1.19439215,628.43,628.35,0.31857629]
[1771640343956,1.19439215,628.43,628.36,0.31857629]
[1771640344155,1.19439215,628.43,628.37,0.31857629]
[1771640344352,1.19439215,628.43,628.38,0.31857629]
[1771640344555,1.19439215,628.43,628.39,0.31857629]
[1771640344755,1.19439215,628.43,628.4,0.31857629]
[1771640344958,1.19439215,628.43,628.41,0.31857629]
[1771640345156,1.19439215,628.44,628.17,1.735]
[1771640345359,1.19439215,628.44,628.18,0.31857713]
[1771640345656,1.19439215,628.44,628.19,0.31857713]
[1771640345854,1.58385769,628.55,628.17,1.735]
[1771640345855,1.19439215,628.42,628.2,0.31857713]
[1771640346055,1.19439215,628.42,628.21,0.31857713]
[1771640346258,1.19439215,628.42,628.22,0.31857713]
[1771640346456,1.19439215,628.42,628.23,0.31857713]
[1771640346659,1.19439215,628.42,628.24,0.31857713]
[1771640346860,1.19439215,628.42,628.25,0.31857713]
[1771640347061,1.19439215,628.42,628.26,0.31857713]
[1771640347356,1.19439215,628.42,628.17,1.735]
[1771640347357,1.19439215,628.42,628.27,0.31857713]
[1771640347557,1.19439215,628.42,628.28,0.31857713]
[1771640347760,1.19439215,628.42,628.29,0.31857713]
[1771640348059,1.19439215,628.42,628.3,0.31857713]
[1771640348261,1.19439215,628.42,628.31,0.31857713]
[1771640348460,1.19439215,628.42,628.32,0.31857713]
[1771640348660,1.19439215,628.42,628.33,0.31857713]
[1771640348857,1.19439215,628.42,628.34,0.31857713]
[1771640349061,1.19439215,628.42,628.35,0.31857713]
[1771640349260,1.19439215,628.42,628.36,0.31857713]
[1771640349457,1.19439215,628.42,628.17,1.735]
[1771640349458,1.19439215,628.42,628.37,0.31857713]
[1771640349661,1.19439215,628.42,628.38,0.31857713]
[1771640349962,1.19439215,628.42,628.39,0.31857713]
[1771640350159,1.19439215,628.42,628.4,0.31857713]
[1771640350360,1.19439215,628.42,628.17,1.735]
[1771640350559,1.19439215,628.42,628.18,0.31858484]
[1771640350763,1.19439215,628.42,628.19,0.31858484]
[1771640350961,1.19439215,628.42,628.2,0.31858484]
[1771640351161,1.19439215,628.42,628.21,0.31858484]
[1771640351464,1.19439215,628.42,628.22,0.31858484]
[1771640351664,1.19439215,628.42,628.23,0.31858484]
[1771640351864,1.19439215,628.42,628.24,0.31858484]
[1771640352061,1.19439215,628.42,628.25,0.31858484]
[1771640352364,1.19439215,628.42,628.26,0.31858484]
[1771640352676,1.19439215,628.42,628.27,0.31858484]
[1771640352860,1.19439215,628.42,628.28,0.31858484]
[1771640353061,1.19439215,628.42,628.29,0.31858484]
[1771640353260,1.19439215,628.42,628.3,0.31858484]
[1771640353466,1.19439215,628.42,628.31,0.31858484]
[1771640353761,1.19439215,628.42,628.32,0.31858484]
[1771640353964,1.19439215,628.42,628.33,0.31858484]
[1771640354166,1.19439215,628.42,628.34,0.31858484]
[1771640354363,1.19439215,628.42,628.35,0.31858484]
[1771640354663,1.19439215,628.42,628.36,0.31858484]
[1771640354863,1.19439215,628.42,628.37,0.31858484]
[1771640355066,1.19439215,628.42,628.38,0.31858484]
[1771640355364,1.19439215,628.44,628.39,0.31858484]
[1771640355667,1.19439215,628.44,628.4,0.31858484]
[1771640355868,1.19439215,628.44,628.41,0.31858484]
[1771640356168,1.19439215,628.44,628.17,1.735]
[1771640356365,1.19439215,628.44,628.18,0.3185849]
[1771640356568,1.19439215,628.44,628.19,0.3185849]
[1771640356766,1.19439215,628.44,628.2,0.3185849]
[1771640356966,1.19439215,628.44,628.21,0.3185849]
[1771640357267,1.19439215,628.44,628.22,0.3185849]
[1771640357465,1.19439215,628.44,628.23,0.3185849]
[1771640357663,1.19439215,628.44,628.24,0.3185849]
[1771640357866,1.19439215,628.44,628.25,0.3185849]
[1771640358068,1.19439215,628.44,628.26,0.3185849]
[1771640358266,1.19439215,628.44,628.27,0.3185849]
[1771640358466,1.19439215,628.44,628.28,0.3185849]
[1771640358669,1.19439215,628.44,628.29,0.3185849]
[1771640358969,1.19439215,628.44,628.3,0.3185849]
[1771640359166,1.19439215,628.44,628.31,0.3185849]
[1771640359469,1.19439215,628.44,628.32,0.3185849]
[1771640359667,1.19439215,628.44,628.33,0.3185849]
[1771640359869,1.19439215,628.44,628.34,0.3185849]
[1771640360169,1.19439215,628.44,628.35,0.3185849]
[1771640360468,1.19439215,628.44,628.36,0.3185849]
[1771640360669,1.19439215,628.44,628.37,0.3185849]
[1771640360869,1.19439215,628.44,628.38,0.3185849]
[1771640361071,1.19439215,628.44,628.39,0.3185849]
[1771640361369,1.19439215,628.44,628.4,0.3185849]
[1771640361566,1.19439215,628.44,628.41,0.3185849]
[1771640361866,1.19439215,628.44,628.17,1.735]
[1771640362069,1.19439215,628.44,628.18,0.31858465]
[1771640362370,1.19439215,628.44,628.19,0.31858465]
[1771640362669,1.19439215,628.44,628.2,0.31858465]
[1771640362965,1.19439215,628.44,628.21,0.31858465]
[1771640363266,1.19439215,628.44,628.22,0.31858465]
[1771640363463,1.19439215,628.44,628.23,0.31858465]
[1771640363665,1.19439215,628.44,628.24,0.31858465]
[1771640363968,1.19439215,628.44,628.25,0.31858465]
[1771640364168,1.19439215,628.44,628.26,0.31858465]
[1771640364365,1.19439215,628.44,628.27,0.31858465]
[1771640364568,1.19439215,628.44,628.28,0.31858465]
[1771640364870,1.19439215,628.44,628.29,0.31858465]
[1771640365067,1.19439215,628.44,628.3,0.31858465]
[1771640365270,1.19439215,628.43,628.31,0.31858465]
[1771640365470,1.19439215,628.43,628.32,0.31858465]
[1771640365770,1.19439215,628.43,628.33,0.31858465]
[1771640365966,1.19439215,628.43,628.34,0.31858465]
[1771640366270,1.19439215,628.43,628.35,0.31858465]
[1771640366471,1.19439215,628.43,628.17,1.735]
[1771640366472,1.19439215,628.43,628.36,0.31858465]
[1771640366771,1.19439215,628.43,628.37,0.31858465]
[1771640367068,1.19439215,628.43,628.38,0.31858465]
[1771640367268,1.19439215,628.43,628.39,0.31858465]
[1771640367468,1.19439215,628.43,628.4,0.31858465]
[1771640367666,1.19439215,628.43,628.41,0.31858465]
[1771640367870,1.19439215,628.43,628.17,1.735]
[1771640368069,1.19439215,628.43,628.18,0.31858456]
[1771640368271,1.19439215,628.43,628.19,0.31858456]
[1771640368473,1.19439215,628.43,628.2,0.31858456]
[1771640368772,1.19439215,628.43,628.21,0.31858456]
[1771640369067,1.19439215,628.43,628.22,0.31858456]
[1771640369268,1.19439215,628.43,628.23,0.31858456]
[1771640369470,1.19439215,628.43,628.24,0.31858456]
[1771640369670,1.19439215,628.43,628.25,0.31858456]
[1771640369871,1.19439215,628.43,628.26,0.31858456]
[1771640370070,1.19439215,628.43,628.27,0.31858456]
[1771640370270,1.19439215,628.43,628.28,0.31858456]
[1771640370473,1.19439215,628.43,628.29,0.31858456]
[1771640370773,1.19439215,628.43,628.3,0.31858456]
[1771640370973,1.19439215,628.43,628.31,0.31858456]
[1771640371170,1.19439215,628.43,628.32,0.31858456]
[1771640371474,1.19439215,628.43,628.33,0.31858456]
[1771640371672,1.19439215,628.43,628.34,0.31858456]
[1771640371870,1.19439215,628.43,628.35,0.31858456]
[1771640372172,1.19439215,628.43,628.36,0.31858456]
[1771640372372,1.19439215,628.43,628.17,1.735]
[1771640372373,1.19439215,628.43,628.37,0.31858456]
[1771640372570,1.19439215,628.43,628.38,0.31858456]
[1771640372773,1.19439215,628.43,628.39,0.31858456]
[1771640372970,1.19439215,628.43,628.4,0.31858456]
[1771640373175,1.19439215,628.43,628.41,0.31858456]
[1771640373474,1.19439215,628.43,627.88,1.18706635]
[1771640373672,1.19439215,628.43,627.89,0.31858431]
[1771640373974,1.19439215,628.43,627.9,0.31858431]
[1771640374172,1.19439215,628.43,627.91,0.31858431]
[1771640374472,1.19439215,628.43,627.92,0.31858431]
[1771640374673,1.19439215,628.43,627.93,0.31858431]
[1771640374972,1.19439215,628.43,627.94,0.31858431]
[1771640375172,1.19439215,628.43,627.95,0.31858431]
[1771640375476,1.19439215,628.43,627.75,0.27696532]
[1771640375477,1.19439215,628.41,627.96,0.31858431]
[1771640375676,1.19439215,628.41,627.97,0.31858431]
[1771640375877,1.19439215,628.41,627.98,0.31858431]
[1771640376082,1.19439215,628.41,627.99,0.31858431]
[1771640376275,1.19439215,628.41,628.0,0.31858431]
[1771640376479,1.19439215,628.41,628.01,0.31858431]
[1771640376677,1.19439215,628.41,628.02,0.31858431]
[1771640376877,1.19439215,628.41,628.03,0.31858431]
[1771640377076,1.19439215,628.41,628.04,0.31858431]
[1771640377379,1.19439215,628.41,628.05,0.31858431]
[1771640377676,1.19439215,628.41,628.06,0.31858431]
[1771640377876,1.19439215,628.41,628.07,0.31858431]
[1771640378074,1.19439215,628.41,628.08,0.31858431]
[1771640378277,1.19439215,628.41,628.09,0.31858431]
[1771640378483,1.19439215,628.41,628.1,0.31858431]
[1771640378681,1.19439215,628.41,628.11,0.31858431]
[1771640378877,1.19439215,628.41,628.12,0.31858431]
[1771640379076,1.19439215,628.41,628.13,0.31858431]
[1771640379278,1.19439215,628.41,628.14,0.31858431]
[1771640379478,1.19439215,628.41,628.15,0.31858431]
[1771640379682,1.19439215,628.41,627.97,1.15]
[1771640379683,1.19439215,628.41,628.16,0.31858431]
[1771640379981,1.19439215,628.41,627.97,1.15]
[1771640379982,1.19439215,628.41,628.17,0.31858431]
[1771640380182,1.19439215,628.41,628.18,0.31858431]
[1771640380482,1.19439215,628.41,628.19,0.31858431]
[1771640380679,1.19439215,628.45,628.2,0.31858431]
[1771640380979,1.19439215,628.45,628.21,0.31858431]
[1771640381277,1.19439215,628.46,628.22,0.31858431]
[1771640381481,1.19439215,628.46,628.23,0.31858431]
[1771640381678,1.19439215,628.46,628.24,0.31858431]
[1771640381876,1.19439215,628.46,628.25,0.31858431]
[1771640382177,1.19439215,628.46,628.26,0.31858431]
[1771640382377,1.19439215,628.46,628.27,0.31858431]
[1771640382583,1.19439215,628.46,628.28,0.31858431]
[1771640382782,1.19439215,628.46,628.29,0.31858431]
[1771640382982,1.19439215,628.46,628.3,0.31858431]
[1771640383281,1.19439215,628.46,628.31,0.31858431]
[1771640383478,1.19439215,628.46,628.32,0.31858431]
[1771640383678,1.19439215,628.47,628.33,0.31858431]
[1771640383983,1.19439215,628.5,628.34,0.31858431]
[1771640384179,1.19439215,628.5,628.35,0.31858431]
[1771640384380,1.19439215,628.5,627.97,1.15]
[1771640384381,1.19439215,628.51,628.36,0.31858431]
[1771640384583,1.19439215,628.51,628.37,0.31858431]
[1771640384882,1.19439215,628.53,628.38,0.31858431]
[1771640385185,1.19439215,628.57,628.39,0.31858431]
[1771640385381,1.19439215,628.57,628.4,0.31858431]
[1771640385685,1.19439215,628.57,628.41,0.31858431]
[1771640385984,1.19439215,628.57,628.42,0.31858431]
[1771640386284,1.19439215,628.58,628.43,0.31858431]
[1771640386481,1.19439215,628.58,628.44,0.31858431]
[1771640386780,1.19439215,628.58,628.45,0.31858431]
[1771640386981,1.19439215,628.58,628.46,0.31858431]
[1771640387280,1.19439215,628.58,628.47,0.31858431]
[1771640387484,1.19439215,628.58,628.48,0.31858431]
[1771640387783,1.19439215,628.58,628.49,0.31858431]
[1771640387984,1.19439215,628.58,628.5,0.31858431]
[1771640388183,1.19439215,628.58,627.97,2.33706635]
[1771640388481,1.58385769,628.7,627.97,2.33706635]
[1771640388482,1.19439215,628.59,627.98,0.31852792]
[1771640388781,1.19439215,628.59,627.99,0.31852792]
[1771640388981,1.19439215,628.59,627.97,2.33706635]
[1771640388982,1.19439215,628.59,628.0,0.31852792]
[1771640389182,1.19439215,628.59,628.01,0.31852792]
[1771640389383,1.19439215,628.59,628.02,0.31852792]
[1771640389582,1.19439215,628.59,628.03,0.31852792]
[1771640389785,1.19439215,628.59,628.04,0.31852792]
[1771640389985,1.19439215,628.59,628.05,0.31852792]
[1771640390182,1.19439215,628.59,627.97,1.15]
[1771640390183,1.19439215,628.59,628.06,0.31852792]
[1771640390482,1.19439215,628.59,628.07,0.31852792]
[1771640390686,1.19439215,628.59,628.08,0.31852792]
[1771640390981,1.19439215,628.59,627.97,1.15]
[1771640390982,1.19439215,628.59,628.09,0.31852792]
[1771640391182,1.19439215,628.59,628.1,0.31852792]
[1771640391385,1.19439215,628.6,628.11,0.31852792]
[1771640391686,1.19439215,628.6,628.12,0.31852792]
[1771640391986,1.19439215,628.6,628.13,0.31852792]
[1771640392182,1.19439215,628.6,628.14,0.31852792]
[1771640392386,1.19439215,628.6,627.97,1.15]
[1771640392387,1.19439215,628.6,628.15,0.31852792]
[1771640392586,1.19439215,628.6,628.16,0.31852792]
[1771640392785,1.19439215,628.6,628.17,0.31852792]
[1771640392988,1.19439215,628.6,628.18,0.31852792]
[1771640393288,1.19439215,628.6,628.19,0.31852792]
[1771640393488,1.19439215,628.6,628.2,0.31852792]
[1771640393687,1.19439215,628.6,628.21,0.31852792]
[1771640393888,1.19439215,628.6,628.22,0.31852792]
[1771640394086,1.19439215,628.6,628.23,0.31852792]
[1771640394289,1.19439215,628.6,628.24,0.31852792]
[1771640394489,1.19439215,628.6,628.25,0.31852792]
[1771640394686,1.19439215,628.6,628.26,0.31852792]
[1771640394985,1.19439215,628.6,628.27,0.31852792]
[1771640395188,1.19439215,628.6,628.28,0.31852792]
[1771640395391,1.19439215,628.59,628.29,0.31852792]
[1771640395690,1.19439215,628.59,628.3,0.31852792]
[1771640395890,1.19439215,628.59,628.31,0.31852792]
[1771640396091,1.19439215,628.59,628.32,0.31852792]
[1771640396292,1.19439215,628.59,628.33,0.31852792]
[1771640396486,1.19439215,628.59,628.34,0.31852792]
[1771640396690,1.19439215,628.59,628.35,0.31852792]
[1771640396890,1.19439215,628.59,628.36,0.31852792]
[1771640397190,1.19439215,628.59,628.37,0.31852792]
[1771640397387,1.19439215,628.59,628.38,0.31852792]
[1771640397591,1.19439215,628.59,628.39,0.31852792]
[1771640397792,1.19439215,628.59,628.4,0.31852792]
[1771640397988,1.19439215,628.59,628.41,0.31852792]
[1771640398293,1.19439215,628.6,628.42,0.31852792]
[1771640398589,1.19439215,628.6,628.43,0.31852792]
[1771640398788,1.19439215,628.59,628.44,0.31852792]
[1771640398993,1.19439215,628.59,628.45,0.31852792]
[1771640399293,1.19439215,628.6,628.46,0.31852792]
[1771640399493,1.19439215,628.6,628.35,1.197]
[1771640399692,1.19439215,628.6,628.36,0.3185283]
[1771640399988,1.19439215,628.6,628.37,0.3185283]
[1771640400192,1.19439215,628.6,628.38,0.3185283]
[1771640400389,1.19439215,628.6,628.39,0.3185283]
[1771640400595,1.19439215,628.6,628.4,0.3185283]
[1771640400893,1.19439215,628.81,628.41,0.3185283]
[1771640401193,1.19439215,628.83,628.42,0.3185283]
[1771640401488,1.19439215,628.83,628.43,0.3185283]
[1771640401687,1.19439215,628.83,628.44,0.3185283]
[1771640401888,1.19439215,628.83,628.45,0.3185283]
[1771640402093,1.19439215,628.83,628.46,0.3185283]
[1771640402292,1.19439215,628.84,628.47,0.3185283]
[1771640402488,1.19439215,628.84,628.48,0.3185283]
[1771640402690,1.19439215,628.84,628.49,0.3185283]
[1771640402889,1.19439215,628.84,628.5,0.3185283]
[1771640403089,1.19439215,628.85,628.51,0.3185283]
[1771640403292,1.19439215,628.85,628.52,0.3185283]
[1771640403489,1.19439215,628.85,628.53,0.3185283]
[1771640403689,1.19439215,628.85,628.54,0.3185283]
[1771640403994,1.19439215,628.85,628.55,0.3185283]
[1771640404193,1.19439215,628.86,628.56,0.3185283]
[1771640404394,1.19439215,628.86,628.57,0.3185283]
[1771640404694,1.19439215,628.86,628.58,0.31842429]
[1771640404890,1.19439215,628.86,628.59,0.31842429]
[1771640405093,1.19439215,628.86,628.35,1.197]
[1771640405290,1.19439215,628.82,628.36,0.31842422]
[1771640405492,1.19439215,628.82,628.37,0.31842422]
[1771640405695,1.19439215,628.82,628.38,0.31842422]
[1771640405995,1.19439215,628.82,628.39,0.31842422]
[1771640406196,1.19439215,628.83,628.4,0.31842422]
[1771640406395,1.19439215,628.83,628.41,0.31842422]
[1771640406592,1.19439215,628.83,628.42,0.31842422]
[1771640406793,1.19439215,628.83,628.43,0.31842422]
[1771640407090,1.19439215,628.83,628.44,0.31842422]
[1771640407292,1.19439215,628.84,628.45,0.31842422]
[1771640407493,1.19439215,628.84,628.46,0.31842422]
[1771640407694,1.19439215,628.82,628.47,0.31842422]
[1771640407893,1.19439215,628.82,628.48,0.31842422]
[1771640408098,1.19439215,628.83,628.49,0.31842422]
[1771640408299,1.19439215,628.83,628.5,0.31842422]
[1771640408594,1.19439215,628.83,628.51,0.31842422]
[1771640408797,1.19439215,628.83,628.52,0.31842422]
[1771640408998,1.19439215,628.83,628.53,0.31842422]
[1771640409200,1.19439215,628.83,628.35,1.197]
[1771640409498,1.19439215,628.83,628.36,0.31843321]
[1771640409702,1.19439215,628.78,628.37,0.31843321]
[1771640409894,1.19439215,628.78,628.38,0.31843321]
[1771640410093,1.19439215,628.78,628.39,0.31843321]
[1771640410297,1.19439215,628.78,628.4,0.31843321]
[1771640410495,1.19439215,628.78,628.35,1.197]
[1771640410496,1.19439215,628.78,628.41,0.31843321]
[1771640410695,1.19439215,628.78,628.42,0.31843321]
[1771640410895,1.19439215,628.78,628.43,0.31843321]
[1771640411100,1.19439215,628.78,628.44,0.31843321]
[1771640411297,1.19439215,628.78,628.45,0.31843321]
[1771640411502,1.19439215,628.77,628.46,0.31843321]
[1771640411698,1.19439215,628.76,628.35,1.197]
[1771640411997,1.19439215,628.76,628.36,0.31846766]
[1771640412200,1.19439215,628.76,628.37,0.31846766]
[1771640412401,1.19439215,628.76,628.38,0.31846766]
[1771640412601,1.19439215,628.76,628.39,0.31846766]
[1771640412804,1.19439215,628.76,628.4,0.31846766]
[1771640413002,1.19439215,628.76,628.41,0.31846766]
[1771640413302,1.19439215,628.76,628.35,1.197]
[1771640413303,1.19439215,628.76,628.42,0.31846766]
[1771640413602,1.19439215,628.75,628.43,0.31846766]
[1771640413903,1.19439215,628.73,628.35,1.197]
[1771640414199,1.19439215,628.73,628.36,0.31848346]
[1771640414398,1.19439215,628.73,628.37,0.31848346]
[1771640414598,1.19439215,628.73,628.38,0.31848346]
[1771640414798,1.19439215,628.73,628.39,0.31848346]
[1771640415099,1.19439215,628.73,628.4,0.31848346]
[1771640415402,1.19439215,628.73,628.35,1.197]
[1771640415403,1.19439215,628.79,628.41,0.31848346]
[1771640415599,1.19439215,628.79,628.42,0.31848346]
[1771640415800,1.19439215,628.79,628.43,0.31848346]
[1771640415999,1.19439215,628.79,628.44,0.31848346]
[1771640416202,1.19439215,628.79,628.45,0.31848346]
[1771640416400,1.19439215,628.79,628.46,0.31848346]
[1771640416598,1.19439215,628.79,628.47,0.31848346]
[1771640416897,1.19439215,628.79,628.48,0.31848346]
[1771640417098,1.19439215,628.79,628.49,0.31848346]
[1771640417302,1.19439215,628.78,628.5,0.31848346]
[1771640417600,1.19439215,628.78,628.35,1.197]
[1771640417902,1.19439215,628.78,628.36,0.31848313]
[1771640418101,1.19439215,628.78,628.37,0.31848313]
[1771640418306,1.19439215,628.78,628.38,0.31848313]
[1771640418605,1.19439215,628.78,628.39,0.31848313]
[1771640418805,1.19439215,628.78,628.4,0.31848313]
[1771640419105,1.19439215,628.78,628.41,0.31848313]
[1771640419306,1.19439215,628.78,628.42,0.31848313]
[1771640419605,1.19439215,628.78,628.43,0.31848313]
[1771640419901,1.19439215,628.78,628.44,0.31848313]
[1771640420105,1.19439215,628.78,628.45,0.31848313]
[1771640420306,1.19439215,628.78,628.46,0.31848313]
[1771640420504,1.19439215,628.78,628.47,0.31848313]
[1771640420703,1.19439215,628.78,628.48,0.31848313]
[1771640420904,1.19439215,628.78,628.49,0.31848313]
[1771640421105,1.19439215,628.78,628.5,0.31848313]
[1771640421406,1.19439215,628.78,628.35,1.197]
[1771640421407,1.19439215,628.77,628.51,0.31848313]
[1771640421703,1.19439215,628.77,628.35,1.197]
[1771640421908,1.19439215,628.77,628.36,0.31848339]
[1771640422207,1.19439215,628.77,628.37,0.31848339]
[1771640422408,1.19439215,628.77,628.38,0.31848339]
[1771640422707,1.19439215,628.77,628.39,0.31848339]
[1771640422908,1.19439215,628.77,628.4,0.31848339]
[1771640423106,1.19439215,628.77,628.41,0.31848339]
[1771640423303,1.19439215,628.76,628.42,0.31848339]
[1771640423506,1.19439215,628.76,628.43,0.31848339]
[1771640423807,1.19439215,628.76,628.44,0.31848339]
[1771640424105,1.19439215,628.76,628.45,0.31848339]
[1771640424306,1.19439215,628.76,628.46,0.31848339]
[1771640424504,1.19439215,628.76,628.47,0.31848339]
[1771640424708,1.19439215,628.76,628.48,0.31848339]
[1771640425007,1.19439215,628.76,628.49,0.31848339]
[1771640425206,1.19439215,628.71,628.35,1.197]
[1771640425404,1.19439215,628.7,628.36,0.31848365]
[1771640425608,1.19439215,628.7,628.37,0.31848365]
[1771640425810,1.19439215,628.7,628.38,0.31848365]
[1771640426007,1.19439215,628.7,628.39,0.31848365]
[1771640426211,1.19439215,628.7,628.4,0.31848365]
[1771640426411,1.19439215,628.7,628.41,0.31848365]
[1771640426708,1.19439215,628.7,628.42,0.31848365]
[1771640426908,1.19439215,628.7,628.35,1.197]
[1771640426909,1.19439215,628.7,628.43,0.31848365]
[1771640427108,1.19439215,628.7,628.44,0.31848365]
[1771640427309,1.19439215,628.7,628.45,0.31848365]
[1771640427611,1.19439215,628.7,628.46,0.31848365]
[1771640427809,1.19439215,628.7,628.47,0.31848365]
[1771640428108,1.19439215,628.7,628.48,0.31848365]
[1771640428308,1.19439215,628.69,628.49,0.31848365]
[1771640428513,1.19439215,628.69,628.35,1.197]
[1771640428713,1.19439215,628.69,628.36,0.31848305]
[1771640429013,1.19439215,628.69,628.37,0.31848305]
[1771640429212,1.19439215,628.69,628.38,0.31848305]
[1771640429410,1.19439215,628.69,628.39,0.31848305]
[1771640429612,1.19439215,628.69,628.35,1.197]
[1771640429613,1.19439215,628.69,628.4,0.31848305]
[1771640429813,1.19439215,628.69,628.41,0.31848305]
[1771640430013,1.19439215,628.69,628.42,0.31848305]
[1771640430214,1.19439215,628.69,628.43,0.31848305]
[1771640430509,1.19439215,628.68,628.44,0.31848305]
[1771640430713,1.19439215,628.68,628.45,0.31848305]
[1771640430910,1.19439215,628.68,628.46,0.31848305]
[1771640431109,1.19439215,628.68,628.47,0.31848305]
[1771640431313,1.19439215,628.68,628.48,0.31848305]
[1771640431514,1.19439215,628.68,628.49,0.31848305]
[1771640431713,1.19439215,628.68,628.35,1.197]
[1771640431910,1.19439215,628.68,628.36,0.31848305]
[1771640432114,1.19439215,628.68,628.37,0.31848305]
[1771640432414,1.19439215,628.68,628.35,1.197]
[1771640432415,1.19439215,628.68,628.38,0.31848305]
[1771640432616,1.19439215,628.68,628.39,0.31848305]
[1771640432817,1.19439215,628.68,628.4,0.31848305]
[1771640433011,1.19439215,628.68,628.41,0.31848305]
[1771640433212,1.19439215,628.68,628.35,1.197]
[1771640433213,1.19439215,628.68,628.42,0.31848305]
[1771640433411,1.19439215,628.68,628.35,1.197]
[1771640433412,1.19439215,628.68,628.43,0.31848305]
[1771640433615,1.19439215,628.68,628.44,0.31848305]